bitfinex/quotes_SOLUSD_20250710
["timestamp","ask_amount","ask_price","bid_price","bid_amount"]
[1752183502074,0.71,162.8,162.75,0.03]
[1752183502684,0.71,162.79,162.75,89.03]
[1752183502874,0.71,162.79,162.76,0.9]
[1752183503073,41.56,162.81,162.76,0.9]
[1752183503074,0.71,162.78,162.76,0.9]
[1752183504171,42.21,162.8,162.76,0.9]
[1752183504372,0.71,162.79,162.76,0.9]
[1752183504780,0.71,162.83,162.77,0.71]
[1752183504983,41.48,162.82,162.77,0.71]
[1752183505193,42.17,162.82,162.78,0.71]
[1752183505366,42.17,162.82,162.77,0.14216157]
[1752183505573,42.17,162.82,162.77,0.85216157]
[1752183505772,0.71,162.82,162.77,0.85216157]
[1752183505997,0.71,162.81,162.77,0.85216157]
[1752183506695,0.77,162.81,162.75,89.74]
[1752183506878,0.77,162.81,162.76,0.14216157]
[1752183507070,0.77,162.81,162.76,0.85216157]
[1752183508187,0.71,162.8,162.75,89.03]
[1752183508394,0.71,162.79,162.75,26.03]
[1752183508588,0.71,162.79,162.75,0.03]
[1752183510604,0.77,162.81,162.75,0.74]
[1752183510805,0.71,162.79,162.75,0.74]
[1752183511179,0.06,162.81,162.76,0.71]
[1752183511574,0.77,162.81,162.76,0.71]
[1752183511781,0.77,162.81,162.77,0.14216157]
[1752183513200,26.0,162.8,162.77,0.14216157]
[1752183513398,0.71,162.79,162.75,0.03]
[1752183513795,0.71,162.78,162.75,0.03]
[1752183517909,0.71,162.77,162.75,0.03]
[1752183518288,0.71,162.76,162.75,0.03]
[1752183518494,26.71,162.76,162.75,0.03]
[1752183520202,41.95,162.76,162.68,0.71]
[1752183520405,26.0,162.73,162.68,0.71]
[1752183520800,26.71,162.73,162.68,0.71]
[1752183521186,0.71,162.75,162.69,0.71]
[1752183521512,0.71,162.75,162.7,0.14216157]
[1752183521697,0.71,162.74,162.7,0.14216157]
[1752183522593,0.71,162.73,162.7,0.14216157]
[1752183523500,0.71,162.75,162.7,0.85216157]
[1752183523901,0.71,162.74,162.7,0.14216157]
[1752183524512,0.71,162.74,162.71,0.9]
[1752183525018,0.71,162.73,162.71,0.9]
[1752183525203,0.71,162.74,162.71,0.9]
[1752183525698,0.71,162.76,162.71,1.61]
[1752183525901,0.71,162.76,162.72,0.14216157]
[1752183526111,0.71,162.76,162.72,89.14216157]
[1752183527194,0.71,162.75,162.72,89.0]
[1752183527817,41.16,162.77,162.72,89.0]
[1752183528008,0.71,162.76,162.72,89.0]
[1752183528512,0.71,162.76,162.72,89.71]
[1752183529600,0.71,162.76,162.73,0.9]
[1752183529915,0.71,162.78,162.73,1.61]
[1752183530114,0.71,162.8,162.74,7.04710312]
[1752183530310,0.71,162.8,162.76,0.14216157]
[1752183530514,0.71,162.8,162.76,0.85216157]
[1752183532022,0.06,162.81,162.76,0.85216157]
[1752183532525,0.06,162.81,162.77,0.68]
[1752183532719,0.74,162.81,162.77,0.68]
[1752183533528,0.74,162.81,162.76,0.14216157]
[1752183533930,0.68,162.8,162.76,0.14216157]
[1752183534226,0.68,162.8,162.76,0.82216157]
[1752183535030,0.06,162.81,162.76,0.82216157]
[1752183535212,0.74,162.81,162.76,236.12216157]
[1752183535411,0.74,162.81,162.77,0.68]
[1752183536722,0.74,162.81,162.76,235.44216157]
[1752183536906,0.74,162.81,162.76,236.12216157]
[1752183537525,0.68,162.8,162.76,235.3]
[1752183537726,0.06,162.81,162.76,235.3]
[1752183537727,0.68,162.79,162.76,235.3]
[1752183539031,0.68,162.78,162.76,235.3]
[1752183539830,0.68,162.77,162.76,235.3]
[1752183540414,0.68,162.77,162.71,0.03]
[1752183540735,0.68,162.77,162.71,26.03]
[1752183540927,0.68,162.77,162.71,0.03]
[1752183542418,0.68,162.77,162.71,6.36710312]
[1752183542620,0.68,162.77,162.72,0.14216157]
[1752183542824,0.68,162.77,162.72,0.82216157]
[1752183543348,0.68,162.76,162.72,0.82216157]
[1752183543709,0.68,162.76,162.72,0.14216157]
[1752183543912,0.68,162.75,162.72,0.14216157]
[1752183544140,0.68,162.77,162.72,6.47926469]
[1752183544319,0.68,162.77,162.72,7.15926469]
[1752183544845,0.68,162.79,162.74,0.14216157]
[1752183545051,0.06,162.81,162.76,6.33710312]
[1752183545356,0.06,162.81,162.78,6.33710312]
[1752183545542,0.06,162.81,162.78,0.14216157]
[1752183547232,0.06,162.81,162.75,0.28432314]
[1752183547233,0.68,162.8,162.75,0.14216157]
[1752183547534,0.68,162.8,162.75,0.82216157]
[1752183548534,0.68,162.8,162.75,7.15926469]
[1752183548714,0.68,162.8,162.75,0.82216157]
[1752183549640,0.06,162.81,162.75,0.82216157]
[1752183549842,0.68,162.79,162.75,0.82216157]
[1752183550216,0.06,162.81,162.75,0.82216157]
[1752183550439,0.74,162.81,162.75,0.82216157]
[1752183551241,0.74,162.81,162.74,6.33710312]
[1752183551242,26.74,162.81,162.74,0.68]
[1752183551422,0.68,162.8,162.75,0.14216157]
[1752183551624,0.06,162.81,162.76,0.68]
[1752183551831,0.06,162.81,162.77,0.68]
[1752183552224,0.74,162.81,162.77,0.68]
[1752183552438,0.06,162.81,162.79,6.33710312]
[1752183552629,0.06,162.81,162.8,0.68]
[1752183552831,0.06,162.81,162.8,0.82216157]
[1752183553226,0.06,162.81,162.8,0.14216157]
[1752183554631,0.06,162.81,162.79,0.14216157]
[1752183554831,0.06,162.81,162.79,0.82216157]
[1752183556856,0.06,162.81,162.8,0.68]
[1752183557145,0.06,162.81,162.78,0.14216157]
[1752183557353,0.06,162.81,162.79,0.68]
[1752183557555,0.06,162.85,162.81,88.94]
[1752183557739,0.06,162.85,162.82,0.68]
[1752183560250,0.06,162.85,162.82,89.62]
[1752183561340,0.06,162.85,162.83,0.82216157]
[1752183562257,0.06,162.85,162.82,88.94]
[1752183562961,0.68,162.84,162.82,88.94]
[1752183563138,0.68,162.83,162.79,0.7]
[1752183563333,0.06,162.85,162.78,114.94]
[1752183563334,0.68,162.82,162.78,114.94]
[1752183563654,0.68,162.84,162.79,0.14216157]
[1752183563858,0.68,162.84,162.79,0.84216157]
[1752183564055,0.68,162.84,162.79,0.7]
[1752183564449,0.68,162.83,162.79,0.7]
[1752183564958,0.06,162.85,162.79,0.7]
[1752183565160,0.74,162.85,162.8,0.7]
[1752183565654,0.06,162.85,162.81,0.7]
[1752183565856,0.74,162.85,162.79,0.84216157]
[1752183566157,0.74,162.85,162.81,16.92684554]
[1752183566158,0.06,162.85,162.81,16.92684554]
[1752183566365,0.06,162.85,162.84,0.14216157]
[1752183566666,0.06,162.85,162.84,0.84216157]
[1752183568061,0.06,162.85,162.84,0.14216157]
[1752183568241,0.06,162.85,162.83,0.14216157]
[1752183569263,0.06,162.85,162.83,0.84216157]
[1752183570860,0.68,162.88,162.85,88.88]
[1752183571039,0.06,162.89,162.85,88.88]
[1752183571245,0.68,162.87,162.85,88.88]
[1752183572657,0.06,162.89,162.85,89.58]
[1752183572855,0.74,162.89,162.85,89.58]
[1752183573441,0.74,162.89,162.85,88.88]
[1752183573666,0.68,162.88,162.85,88.88]
[1752183573978,0.06,162.89,162.85,88.88]
[1752183574260,0.68,162.87,162.85,88.88]
[1752183574769,0.06,162.89,162.85,88.88]
[1752183574770,0.74,162.89,162.85,88.88]
[1752183576153,0.68,162.88,162.85,88.88]
[1752183576354,0.06,162.89,162.85,88.88]
[1752183576645,0.68,162.88,162.85,88.88]
[1752183576955,0.68,162.87,162.85,88.88]
[1752183577156,0.06,162.89,162.86,0.84216157]
[1752183577672,0.06,162.89,162.87,0.7]
[1752183577867,0.06,162.89,162.86,0.14216157]
[1752183578052,0.74,162.89,162.86,0.14216157]
[1752183578252,0.68,162.88,162.86,0.14216157]
[1752183578744,0.06,162.89,162.86,0.14216157]
[1752183578944,0.74,162.89,162.86,0.14216157]
[1752183579875,0.74,162.89,162.86,0.7]
[1752183579876,0.06,162.89,162.86,0.7]
[1752183580254,0.06,162.89,162.88,26.0]
[1752183580567,0.06,162.89,162.88,26.84216157]
[1752183580770,0.06,162.89,162.88,115.72216157]
[1752183582675,0.06,162.89,162.88,89.58]
[1752183582873,0.06,162.89,162.88,113.74222071]
[1752183583174,4.82942425,162.99,162.92,26.14216157]
[1752183583175,0.68,162.97,162.92,26.14216157]
[1752183583373,0.68,162.97,162.93,0.7]
[1752183583673,0.68,162.97,162.92,114.96216157]
[1752183583980,0.68,162.97,162.92,115.66216157]
[1752183585571,0.68,162.96,162.92,115.66216157]
[1752183586178,0.68,162.96,162.92,114.96216157]
[1752183586654,0.68,162.95,162.92,114.82]
[1752183587153,4.82942425,162.99,162.92,114.82]
[1752183587470,0.68,162.97,162.92,114.82]
[1752183587668,0.68,162.96,162.92,114.82]
[1752183589397,0.68,162.96,162.92,88.82]
[1752183590078,0.68,162.95,162.92,88.82]
[1752183590967,0.68,162.97,162.92,88.82]
[1752183591159,0.68,162.96,162.92,88.82]
[1752183593459,0.74,162.96,162.92,89.49]
[1752183593884,0.06,162.96,162.92,88.82]
[1752183594073,0.73,162.96,162.92,89.49]
[1752183596284,0.06,162.96,162.92,89.49]
[1752183596899,0.06,162.96,162.93,0.67]
[1752183597068,0.06,162.96,162.92,88.82]
[1752183597391,0.06,162.96,162.93,0.14216157]
[1752183598082,0.06,162.96,162.93,0.81216157]
[1752183599373,0.06,162.96,162.94,0.67]
[1752183600074,0.06,162.96,162.93,0.14216157]
[1752183600284,0.67,162.95,162.92,88.82]
[1752183600790,0.67,162.95,162.88,0.03]
[1752183600964,0.67,162.95,162.88,88.85]
[1752183601160,0.67,162.95,162.88,89.52]
[1752183601364,0.67,162.95,162.88,88.85]
[1752183601768,0.67,162.95,162.88,89.52]
[1752183602290,0.67,162.95,162.88,88.85]
[1752183602471,16.78468397,162.94,162.88,0.03]
[1752183602671,0.67,162.93,162.88,0.03]
[1752183602980,0.67,162.93,162.89,0.67]
[1752183603482,6.1031,162.95,162.88,0.03]
[1752183603682,0.67,162.92,162.88,0.03]
[1752183604585,0.67,162.91,162.88,0.03]
[1752183605385,0.67,162.9,162.88,0.03]
[1752183608091,0.06,162.96,162.89,7.00710312]
[1752183608279,0.06,162.96,162.9,7.14926469]
[1752183608478,0.06,162.96,162.9,0.81216157]
[1752183608674,0.06,162.96,162.89,26.0]
[1752183608675,0.67,162.95,162.88,0.7]
[1752183608876,0.67,162.95,162.89,0.14216157]
[1752183609472,0.67,162.95,162.88,0.03]
[1752183609673,0.67,162.95,162.88,0.17216157]
[1752183610993,1.6464,162.94,162.88,7.03710312]
[1752183611198,0.67,162.94,162.88,0.7]
[1752183613701,0.67,162.94,162.88,7.03710312]
[1752183613902,0.67,162.95,162.89,7.43358783]
[1752183614105,0.67,162.95,162.89,1.09648471]
[1752183614998,0.06,162.96,162.89,0.14216157]
[1752183615307,0.73,162.96,162.89,1.80366157]
[1752183616012,0.73,162.96,162.89,2.47366157]
[1752183617804,1.507,162.95,162.88,0.45648471]
[1752183618011,0.67,162.94,162.88,0.45648471]
[1752183618188,0.67,162.94,162.88,0.17216157]
[1752183620307,0.67,162.94,162.89,26.0]
[1752183620510,0.67,162.94,162.89,26.67]
[1752183620808,0.06,162.96,162.92,0.14216157]
[1752183620991,0.06,162.96,162.92,0.81216157]
[1752183621194,0.73,162.96,162.92,0.81216157]
[1752183622014,0.73,162.96,162.92,0.14216157]
[1752183622913,0.06,162.96,162.92,0.83216157]
[1752183623711,0.72,162.96,162.92,0.83216157]
[1752183623902,0.06,162.96,162.93,0.69]
[1752183624214,0.06,162.96,162.94,0.69]
[1752183624390,0.06,162.96,162.93,26.83216157]
[1752183624809,0.06,162.96,162.95,0.14216157]
[1752183625213,0.06,162.96,162.94,0.69]
[1752183627014,0.06,162.96,162.94,7.02710312]
[1752183627311,0.06,162.96,162.95,0.69]
[1752183627494,0.06,162.96,162.95,0.83216157]
[1752183629225,0.06,162.96,162.95,18.40116868]
[1752183629435,0.06,162.96,162.95,24.7382718]
[1752183629918,0.06,162.96,162.95,18.40116868]
[1752183630292,0.06,162.96,162.95,24.7382718]
[1752183630619,0.06,162.96,162.95,26.94895697]
[1752183630826,0.06,162.96,162.95,26.66055385]
[1752183631030,0.06,162.96,162.95,39.33476009]
[1752183631236,0.2,163.02,162.99,43.06900711]
[1752183631421,0.2,163.02,163.01,6.76358783]
[1752183631817,0.2,163.02,163.01,7.45358783]
[1752183632025,0.2,163.02,163.01,8.06704712]
[1752183632227,0.2,163.02,163.01,18.51462797]
[1752183632412,0.2,163.02,163.01,20.15962797]
[1752183632732,0.2,163.02,163.01,26.49673109]
[1752183634238,0.2,163.02,163.01,20.15962797]
[1752183634420,0.2,163.02,163.01,26.49673109]
[1752183635143,0.1,163.06,163.05,26.28432314]
[1752183635318,0.1,163.06,163.05,43.21116868]
[1752183635508,0.1,163.06,163.05,50.2382718]
[1752183636215,0.1,163.06,163.05,50.8515806]
[1752183636744,0.0179,163.13,163.1,0.42648471]
[1752183636912,0.0179,163.13,163.12,23.40611023]
[1752183637113,0.0179,163.13,163.12,17.06900711]
[1752183637312,0.0179,163.13,163.12,24.2382718]
[1752183638038,0.06,163.14,163.13,0.42648471]
[1752183638334,0.06,163.16,163.15,43.21116868]
[1752183638527,0.1,163.24,163.19,26.0]
[1752183638725,0.1,163.24,163.19,0.28432314]
[1752183638931,0.1,163.24,163.21,0.28432314]
[1752183639133,0.1,163.24,163.23,0.14216157]
[1752183639343,0.1,163.24,163.23,17.48684554]
[1752183639544,0.1,163.24,163.23,24.1082718]
[1752183639749,3.85412649,163.36,163.27,17.21116868]
[1752183639913,1.6102,163.39,163.29,0.14216157]
[1752183640114,3.19340596,163.4,163.33,16.92684554]
[1752183640318,0.66,163.41,163.34,0.28432314]
[1752183640527,0.66,163.41,163.35,49.26394866]
[1752183640847,0.66,163.43,163.36,0.46]
[1752183641024,0.66,163.43,163.35,26.14216157]
[1752183641228,7.2886,163.46,163.36,0.46]
[1752183641422,6.6286,163.48,163.36,0.46]
[1752183641619,0.66,163.47,163.36,0.46]
[1752183641836,0.66,163.47,163.37,0.14216157]
[1752183642046,0.66,163.47,163.39,0.14216157]
[1752183642261,0.66,163.47,163.39,26.14216157]
[1752183642552,0.66,163.47,163.42,26.0]
[1752183642914,0.66,163.46,163.42,26.0]
[1752183643138,0.66,163.46,163.43,0.14216157]
[1752183643438,0.66,163.49,163.41,0.46]
[1752183643750,0.66,163.49,163.42,0.14216157]
[1752183643936,0.66,163.49,163.44,17.21116868]
[1752183644253,0.66,163.51,163.45,0.14216157]
[1752183644441,0.66,163.48,163.43,26.0]
[1752183644634,0.66,163.48,163.4,26.0]
[1752183644832,16.78468397,163.47,163.34,9.72291256]
[1752183645025,26.42648471,163.49,163.34,9.72291256]
[1752183645026,16.78468397,163.45,163.34,9.26291256]
[1752183645339,0.66,163.46,163.34,9.26291256]
[1752183645638,0.28432314,163.44,163.34,9.26291256]
[1752183645816,16.78468397,163.42,163.3,0.46]
[1752183646020,7.1534,163.41,163.27,0.46]
[1752183646226,0.66,163.4,163.29,0.46]
[1752183646432,0.66,163.4,163.27,10.39968746]
[1752183646625,0.14216157,163.39,163.27,10.39968746]
[1752183646828,0.28432314,163.36,163.23,0.46]
[1752183647037,0.42648471,163.33,163.21,0.46]
[1752183647221,16.78468397,163.31,163.22,26.0]
[1752183647541,16.78468397,163.31,163.21,0.46]
[1752183647542,0.66,163.3,163.24,26.0]
[1752183647726,26.0,163.37,163.24,0.46]
[1752183647727,0.66,163.32,163.24,0.46]
[1752183648122,16.78468397,163.31,163.21,10.39968746]
[1752183648330,16.78468397,163.29,163.17,0.46]
[1752183648638,0.66,163.28,163.17,10.85968746]
[1752183648845,0.66,163.28,163.19,16.78468397]
[1752183649225,0.66,163.28,163.22,26.0]
[1752183649843,0.66,163.28,163.19,0.46]
[1752183650048,0.66,163.28,163.19,10.9373568]
[1752183650343,0.66,163.28,163.17,10.39968746]
[1752183650552,16.78468397,163.27,163.16,0.46]
[1752183650720,0.66,163.26,163.16,0.46]
[1752183651041,0.66,163.26,163.16,26.46]
[1752183651243,0.66,163.26,163.17,26.0]
[1752183651424,0.66,163.26,163.16,0.46]
[1752183651626,16.78468397,163.25,163.13,0.46]
[1752183651829,16.78468397,163.23,163.13,0.46]
[1752183652032,107.52,163.22,163.09,0.46]
[1752183652229,16.78468397,163.2,163.09,0.46]
[1752183652431,0.7,163.19,163.09,0.46]
[1752183652734,0.7,163.19,163.1,26.0]
[1752183652932,0.7,163.19,163.1,0.14216157]
[1752183653235,0.7,163.19,163.1,26.0]
[1752183653647,0.7,163.19,163.1,0.14216157]
[1752183653949,0.7,163.19,163.09,0.46]
[1752183654146,16.78468397,163.18,163.07,10.39968746]
[1752183654351,0.7,163.17,163.07,0.46]
[1752183654654,16.78468397,163.16,163.05,0.46]
[1752183654859,0.7,163.15,163.05,0.46]
[1752183655041,0.7,163.15,163.03,17.24468397]
[1752183655357,16.78468397,163.14,163.0,0.46]
[1752183655529,15.31655337,163.23,163.0,0.46]
[1752183655530,0.7,163.13,163.0,0.46]
[1752183655739,0.7,163.13,163.01,19.66260002]
[1752183655932,6.8194,163.13,163.0,15.42830888]
[1752183656232,0.7,163.12,163.01,16.78468397]
[1752183656456,0.7,163.12,163.05,0.14216157]
[1752183656650,0.7,163.12,163.1,0.03]
[1752183656856,0.7,163.11,163.1,0.03]
[1752183658754,0.2,163.11,163.1,0.03]
[1752183659538,0.48432314,163.11,163.1,0.03]
[1752183660858,0.2,163.11,163.1,0.03]
[1752183661651,0.48432314,163.11,163.1,0.03]
[1752183661842,17.26900711,163.11,163.1,0.03]
[1752183663145,17.41116868,163.11,163.1,0.03]
[1752183664364,17.26900711,163.11,163.1,0.03]
[1752183666457,0.28432314,163.09,162.99,0.67]
[1752183666654,53.76,163.08,163.02,26.0]
[1752183666852,0.7,163.07,163.02,26.0]
[1752183667255,0.7,163.06,163.02,26.0]
[1752183668170,0.7,163.06,162.99,0.67]
[1752183668340,0.7,163.06,163.0,14.96830888]
[1752183668662,0.7,163.06,163.02,26.0]
[1752183668848,0.7,163.09,163.03,15.63830888]
[1752183669047,52.84,163.08,163.02,26.0]
[1752183669253,53.54,163.08,163.01,0.14216157]
[1752183669451,53.26,163.07,163.01,0.14216157]
[1752183669666,53.26,163.07,163.03,26.0]
[1752183669861,53.26,163.07,163.0,15.63830888]
[1752183669862,0.7,163.06,163.02,26.0]
[1752183670242,0.7,163.05,163.02,26.0]
[1752183670753,53.26,163.07,163.01,14.96830888]
[1752183670754,53.96,163.07,163.01,14.96830888]
[1752183670950,53.96,163.07,163.0,0.67]
[1752183671143,53.96,163.07,163.0,15.63830888]
[1752183671359,0.7,163.07,163.0,15.63830888]
[1752183671551,0.7,163.07,162.99,0.67]
[1752183672037,0.7,163.07,163.0,14.96830888]
[1752183672765,0.7,163.07,162.99,0.67]
[1752183672966,0.7,163.07,162.97,0.67]
[1752183673291,16.78468397,163.06,162.99,40.96830888]
[1752183673474,0.7,163.06,163.01,14.96830888]
[1752183673675,52.76,163.07,163.02,41.63830888]
[1752183673840,53.46,163.07,163.02,41.63830888]
[1752183674044,53.46,163.07,163.02,26.0]
[1752183674544,0.7,163.09,163.03,0.67]
[1752183674760,0.7,163.09,163.02,14.96830888]
[1752183674945,53.34,163.09,163.02,10.52246516]
[1752183675144,53.34,163.09,163.0,0.67]
[1752183675145,0.7,163.08,163.0,0.67]
[1752183675366,0.7,163.08,163.0,11.19246516]
[1752183675572,1.5361,163.06,162.93,9.36291256]
[1752183675859,0.28432314,163.03,162.93,11.29246516]
[1752183676061,53.24,163.02,162.96,26.0]
[1752183676279,0.7,163.01,162.96,26.0]
[1752183676453,0.7,163.03,162.96,0.67]
[1752183676653,16.78468397,163.09,163.03,26.0]
[1752183676880,16.78468397,163.11,163.06,10.52246516]
[1752183677056,3.1982496,163.17,163.07,0.67]
[1752183677266,3.1982496,163.17,163.14,10.52246516]
[1752183677453,2.3485,163.21,163.16,10.52246516]
[1752183677782,0.7,163.24,163.2,10.52246516]
[1752183678084,0.7,163.24,163.19,10.52246516]
[1752183678286,0.7,163.24,163.17,26.67]
[1752183678287,0.7,163.24,163.18,10.52246516]
[1752183678441,0.7,163.24,163.17,37.19246516]
[1752183678647,0.7,163.24,163.17,0.67]
[1752183678893,0.7,163.24,163.17,26.0]
[1752183679183,17.48468397,163.25,163.17,26.67]
[1752183679464,0.7,163.24,163.17,26.67]
[1752183679871,0.7,163.24,163.13,26.0]
[1752183679872,16.78468397,163.23,163.13,26.0]
[1752183680165,16.78468397,163.21,163.1,26.67]
[1752183680362,16.78468397,163.19,163.1,37.19246516]
[1752183680560,0.7,163.18,163.1,37.19246516]
[1752183680960,0.7,163.18,163.12,26.0]
[1752183681159,0.7,163.18,163.1,15.62640562]
[1752183681356,0.7,163.18,163.11,14.95640562]
[1752183681656,0.7,163.18,163.12,14.95640562]
[1752183682757,0.7,163.18,163.11,0.67]
[1752183682961,0.7,163.18,163.12,26.0]
[1752183683160,23.27558397,163.17,163.12,26.0]
[1752183683357,23.27558397,163.17,162.95,15.55521334]
[1752183683358,0.28432314,163.14,163.03,0.67]
[1752183683562,0.28432314,163.11,163.0,0.67]
[1752183683760,0.28432314,163.11,162.97,10.04879579]
[1752183683761,0.28432314,163.08,162.97,0.67]
[1752183683960,0.28432314,163.08,162.97,26.67]
[1752183683961,0.66,163.07,162.97,26.67]
[1752183684273,49.27558397,163.06,162.97,0.67]
[1752183684464,1.08648471,163.05,162.94,0.67]
[1752183684668,16.78468397,163.03,162.94,0.67]
[1752183684855,0.66,163.02,162.95,26.0]
[1752183685049,0.66,163.02,162.94,0.67]
[1752183685251,16.78468397,163.01,162.93,0.1]
[1752183685556,16.78468397,162.99,162.93,0.1]
[1752183685961,0.66,162.98,162.93,0.1]
[1752183686372,0.66,162.97,162.93,0.1]
[1752183686557,0.66,162.96,162.93,0.1]
[1752183688170,16.78468397,162.99,162.93,0.1]
[1752183688171,0.66,162.95,162.93,0.1]
[1752183688358,0.66,162.94,162.93,0.1]
[1752183690276,69.98900711,162.94,162.93,0.1]
[1752183691878,17.06900711,162.93,162.88,0.03]
[1752183692076,17.72900711,162.93,162.88,0.03]
[1752183692380,0.66,162.92,162.88,0.03]
[1752183692584,0.14216157,162.96,162.88,0.03]
[1752183692585,0.66,162.98,162.89,0.67]
[1752183692894,6.6055,163.01,162.97,14.95640562]
[1752183693198,2.203,163.02,162.94,26.67]
[1752183693691,0.28432314,162.99,162.9,26.0]
[1752183693870,0.66,162.98,162.92,26.0]
[1752183694072,0.66,162.98,162.9,14.95640562]
[1752183694377,16.78468397,162.97,162.88,0.03]
[1752183694578,53.38,162.96,162.89,0.67]
[1752183694969,53.38,162.96,162.89,15.62640562]
[1752183695169,52.72,162.96,162.91,14.95640562]
[1752183695384,70.00468397,163.0,162.93,14.95640562]
[1752183695688,70.00468397,163.0,162.92,0.67]
[1752183695689,3.20013637,163.02,162.97,14.95640562]
[1752183695868,0.66,163.09,162.99,0.14216157]
[1752183696068,3.1993342,163.08,163.06,14.95640562]
[1752183696286,3.1993342,163.08,163.04,0.67]
[1752183696478,0.66,163.13,163.05,0.67]
[1752183696679,0.66,163.13,163.03,0.67]
[1752183696881,0.66,163.13,163.05,14.95640562]
[1752183697085,9.35831366,163.14,163.07,14.95640562]
[1752183697291,3.19831366,163.14,163.06,0.67]
[1752183697488,3.19831366,163.14,163.09,14.95640562]
[1752183697674,53.4,163.18,163.1,0.67]
[1752183697876,3.85756402,163.18,163.11,14.95640562]
[1752183698086,3.85756402,163.18,163.1,0.67]
[1752183698087,3.85756402,163.18,163.12,14.95640562]
[1752183698292,3.19756402,163.18,163.13,14.95640562]
[1752183698477,6.4772,163.2,163.12,15.62640562]
[1752183698672,0.66,163.19,163.12,0.67]
[1752183698876,17.44468397,163.19,163.12,0.67]
[1752183699395,16.78468397,163.19,163.12,0.67]
[1752183700176,59.6972,163.2,163.09,26.0]
[1752183700177,16.78468397,163.17,163.09,26.0]
[1752183700381,0.66,163.16,163.09,26.0]
[1752183700998,0.66,163.16,163.09,40.95640562]
[1752183701186,0.66,163.16,163.09,26.0]
[1752183701503,16.78468397,163.15,163.04,0.67]
[1752183701678,0.28432314,163.12,163.01,0.67]
[1752183702019,0.28432314,163.1,163.01,0.67]
[1752183702170,0.28432314,163.1,162.99,0.14216157]
[1752183702374,0.28432314,163.1,162.95,16.78468397]
[1752183702375,0.66,163.09,163.02,26.0]
[1752183703076,0.66,163.09,163.01,26.0]
[1752183703270,16.78468397,163.08,162.97,15.62640562]
[1752183703473,0.66,163.07,162.98,14.95640562]
[1752183703673,0.66,163.07,162.98,26.0]
[1752183703909,0.66,163.07,162.98,14.95640562]
[1752183704092,6.13122183,163.1,162.99,0.67]
[1752183704093,0.66,163.1,162.99,0.67]
[1752183704398,0.66,163.1,163.0,0.14216157]
[1752183704586,0.66,163.1,163.03,40.95640562]
[1752183704779,0.66,163.1,163.03,26.67]
[1752183704985,0.66,163.1,163.04,14.95640562]
[1752183705183,0.66,163.18,163.06,26.0]
[1752183705385,0.66,163.18,163.1,14.95640562]
[1752183705570,16.78468397,163.17,163.08,26.0]
[1752183705773,16.78468397,163.17,163.09,14.95640562]